bitfinex-derivatives/quotes_SOLF0:USTF0_20250716
["timestamp","ask_amount","ask_price","bid_price","bid_amount"]
[1752669132503,5.9898,166.93,166.86,11.4683331]
[1752669132703,124.0,166.95,166.86,11.4683331]
[1752669133100,5.9906,166.91,166.82,191.18]
[1752669133304,5.9906,166.91,166.85,11.4683331]
[1752669133699,5.9911,166.9,166.85,11.4683331]
[1752669134214,5.9905,166.91,166.85,11.4683331]
[1752669134405,124.0,166.95,166.85,11.4683331]
[1752669134810,5.9908,166.91,166.85,17.4609331]
[1752669135106,124.0,166.95,166.85,17.4609331]
[1752669135507,5.9908,166.91,166.85,17.4609331]
[1752669135705,11.4683331,166.94,166.83,190.88]
[1752669135910,5.9919,166.88,166.83,190.88]
[1752669136212,11.4683331,166.91,166.83,190.88]
[1752669136410,11.4683331,166.88,166.78,190.48]
[1752669136710,11.4683331,166.88,166.79,5.9947]
[1752669137004,11.4683331,166.88,166.78,190.48]
[1752669137207,11.4683331,166.91,166.82,0.03931346]
[1752669137405,5.9916,166.88,166.82,0.03931346]
[1752669137609,11.4683331,166.91,166.78,201.9483331]
[1752669137809,11.4683331,166.91,166.81,5.9938]
[1752669138113,0.04170891,166.86,166.83,0.0393005]
[1752669138303,0.04170891,166.86,166.83,6.0326005]
[1752669138508,17.4589331,166.91,166.81,11.4683331]
[1752669138706,5.9906,166.91,166.81,11.4683331]
[1752669138902,11.4683331,166.94,166.83,0.04234617]
[1752669139110,0.04361568,166.88,166.87,5.9919]
[1752669139514,124.0,166.95,166.85,190.46]
[1752669139814,708.28,167.04,166.87,11.4683331]
[1752669140013,11.4683331,167.02,166.9,11.4683331]
[1752669140214,5.9883,166.98,166.92,5.9899]
[1752669140514,129.9883,166.98,166.92,5.9899]
[1752669142019,124.0,166.98,166.93,5.9897]
[1752669142219,11.4683331,167.02,166.9,11.4683331]
[1752669142417,11.4683331,167.02,166.94,5.9893]
[1752669142616,124.0,167.01,166.94,5.9893]
[1752669142818,5.9873,167.0,166.94,5.9893]
[1752669143015,11.4683331,167.05,166.96,5.9887]
[1752669143214,5.9869,167.02,166.96,5.9887]
[1752669143517,124.0,167.02,166.97,5.9883]
[1752669143920,129.9866,167.02,166.93,201.5083331]
[1752669144118,190.04,167.11,166.93,201.5083331]
[1752669144321,11.4683331,167.05,166.93,201.5083331]
[1752669144515,124.0,167.04,166.96,11.4683331]
[1752669145322,124.0,167.04,166.98,5.9879]
[1752669145620,11.4683331,167.07,166.96,11.4683331]
[1752669146121,124.0,167.06,166.96,11.4683331]
[1752669146321,124.0,167.06,166.94,11.4683331]
[1752669146518,124.0,167.06,167.0,11.4683331]
[1752669146918,124.0,167.06,166.93,517.6]
[1752669147120,124.0,167.06,166.94,201.3283331]
[1752669147317,5.9868,167.02,166.96,5.9886]
[1752669147524,5.9868,167.02,166.94,201.3283331]
[1752669148223,124.0,167.06,166.94,201.3283331]
[1752669148619,124.0,167.06,166.97,11.4683331]
[1752669149227,5.9861,167.04,166.97,11.4683331]
[1752669149725,5.9861,167.04,166.98,5.9879]
[1752669150127,135.4683331,167.06,166.94,189.7]
[1752669151026,135.4683331,167.06,166.96,11.4683331]
[1752669151327,5.9863,167.03,166.98,5.9877]
[1752669151628,124.0,167.06,166.96,11.4683331]
[1752669152327,5.9862,167.03,166.96,11.4683331]
[1752669152521,124.0,167.06,166.96,11.4683331]
[1752669152920,5.9859,167.04,166.96,11.4683331]
[1752669153126,124.0,167.06,166.96,11.4683331]
[1752669153422,5.9855,167.05,166.99,5.9876]
[1752669153628,124.0,167.06,166.99,11.4683331]
[1752669153830,529.1683331,167.12,166.99,11.4683331]
[1752669154030,5.0,167.16,167.02,11.4683331]
[1752669154238,11.4683331,167.14,167.02,11.4683331]
[1752669154530,11.4683331,167.14,167.07,0.03945781]
[1752669154725,5.9847,167.08,167.07,0.03945781]
[1752669155735,5.9853,167.06,167.0,195.99172235]
[1752669155935,0.0392899,167.09,167.0,195.99172235]
[1752669156133,6.83172235,167.08,167.0,189.16]
[1752669156540,124.0,167.07,167.0,189.16]
[1752669157241,0.04046442,167.05,167.0,195.1472]
[1752669157439,0.04046442,167.05,167.0,189.16]
[1752669157937,0.04046442,167.05,166.95,11.42396853]
[1752669158345,5.9861,167.04,166.98,5.9876]
[1752669158746,0.04046442,167.05,166.95,200.02396853]
[1752669159141,124.0,167.07,166.95,200.02396853]
[1752669159439,0.04436145,167.02,166.95,200.02396853]
[1752669159644,0.04436145,167.02,166.95,188.6]
[1752669160544,5.9875,167.0,166.95,194.589]
[1752669160943,0.04436145,167.02,166.92,517.32]
[1752669161148,0.04436145,167.02,166.92,705.78]
[1752669161449,11.42396853,167.04,166.92,705.78]
[1752669161749,0.03983693,166.99,166.92,705.78]
[1752669161943,5.988,166.98,166.93,5.9895]
[1752669162242,0.03983693,166.99,166.92,705.78]
[1752669162647,0.03983693,166.99,166.94,11.42396853]
[1752669162846,0.03983693,166.99,166.97,11.42396853]
[1752669163046,0.03983693,166.99,166.98,188.24]
[1752669163243,0.03983693,166.99,166.98,194.228]
[1752669163848,5.9857,167.05,167.0,5.9871]
[1752669164050,5.9852,167.06,166.98,188.24]
[1752669164349,11.42396853,167.11,167.0,11.42396853]
[1752669164544,5.0,167.16,167.03,11.42396853]
[1752669164545,124.0,167.1,167.03,11.42396853]
[1752669165750,5.9845,167.08,167.03,17.41006853]
[1752669166154,5.9845,167.08,167.04,0.03839759]
[1752669166346,5.9848,167.07,167.04,0.03839759]
[1752669167247,5.9845,167.08,167.04,0.03839759]
[1752669167648,5.9844,167.09,167.04,6.02389759]
[1752669167850,124.0,167.1,167.04,0.03839759]
[1752669169250,5.9854,167.06,167.04,0.03839759]
[1752669169747,124.0,167.1,167.04,0.03839759]
[1752669169941,5.9843,167.09,167.04,0.03839759]
[1752669170153,124.0,167.1,167.04,0.03839759]
[1752669170748,5.9851,167.07,167.04,0.03839759]
[1752669171248,124.0,167.1,167.04,0.03839759]
[1752669171547,16.42396853,167.16,167.04,0.03839759]
[1752669171850,5.9837,167.1,167.06,5.985]
[1752669172050,124.0,167.15,167.06,5.985]
[1752669172249,11.42396853,167.13,167.01,11.42396853]
[1752669172743,5.0,167.16,167.01,11.42396853]
[1752669172947,5.9843,167.09,167.04,5.9855]
[1752669173151,5.9843,167.09,167.05,0.041355]
[1752669173352,5.9838,167.1,167.05,6.026655]
[1752669173950,5.9841,167.09,167.05,6.026655]
[1752669174153,5.9841,167.09,167.05,0.041355]
[1752669175355,124.0,167.15,167.05,0.041355]
[1752669176247,124.0,167.15,167.07,11.42396853]
[1752669177051,124.0,167.15,167.09,0.03791697]
[1752669177260,5.0,167.16,167.09,0.03791697]
[1752669177756,5.9821,167.15,167.1,5.9834]
[1752669178458,5.9822,167.14,167.1,5.9834]
[1752669178650,129.0,167.16,167.09,0.03791697]
[1752669178850,5.0,167.16,167.1,11.42396853]
[1752669179056,5.0,167.16,167.11,6.82443148]
[1752669179859,5.0,167.16,167.15,5.9818]
[1752669180753,5.0,167.16,167.14,5.9821]
[1752669180953,133.29381314,167.22,167.15,6.82443148]
[1752669181160,5.9787,167.24,167.18,6.82443148]
[1752669181363,6.82443148,167.28,167.19,5.9801]
[1752669181558,6.82443148,167.26,167.17,6.82443148]
[1752669181759,6.82443148,167.22,167.12,517.06]
[1752669181963,6.82443148,167.18,167.12,517.06]
[1752669182363,6.82443148,167.22,167.12,523.88443148]
[1752669182556,124.0,167.21,167.13,0.03781271]
[1752669182955,5.9803,167.2,167.13,0.03781271]
[1752669183160,5.9803,167.2,167.14,5.9819]
[1752669183363,186.82,167.32,167.16,6.82443148]
[1752669183557,186.82,167.32,167.18,6.82443148]
[1752669183761,6.82443148,167.29,167.18,6.82443148]
[1752669183961,5.9789,167.24,167.18,6.82443148]
[1752669184161,5.9789,167.24,167.18,12.80493148]
[1752669184465,5.9791,167.23,167.18,12.80493148]
[1752669184666,6.82443148,167.25,167.16,12.80583148]
[1752669184861,6.82443148,167.25,167.16,6.82443148]
[1752669185062,6.82443148,167.25,167.19,0.04014667]
[1752669185263,6.82443148,167.27,167.19,0.04014667]
[1752669185560,6.82443148,167.29,167.2,6.82443148]
[1752669185866,124.0,167.28,167.2,6.82443148]
[1752669186063,124.0,167.28,167.23,0.04033769]
[1752669186662,5.9771,167.29,167.23,6.01933769]
[1752669186863,5.9771,167.29,167.23,0.04033769]
[1752669187064,6.82443148,167.32,167.22,6.82443148]
[1752669187263,124.0,167.31,167.22,6.82443148]
[1752669187968,124.0,167.31,167.24,6.82443148]
[1752669188169,6.82443148,167.35,167.26,6.82443148]
[1752669188370,6.82443148,167.35,167.26,6.86562354]
[1752669188670,5.9755,167.33,167.28,5.9772]
[1752669188863,130.82443148,167.35,167.26,6.86562354]
[1752669189065,6.82443148,167.33,167.24,6.82443148]
[1752669189565,130.82443148,167.35,167.26,6.82443148]
[1752669189766,5.9757,167.33,167.28,5.9769]
[1752669190167,130.82443148,167.35,167.27,0.0396414]
[1752669190470,5.9751,167.34,167.29,5.9768]
[1752669190663,6.82443148,167.35,167.27,0.0396414]
[1752669191170,6.82443148,167.37,167.27,0.0396414]
[1752669191670,6.82443148,167.37,167.26,6.82443148]
[1752669191866,6.82443148,167.39,167.3,6.82443148]
[1752669192060,516.9,167.44,167.3,6.82443148]
[1752669192368,6.82443148,167.42,167.32,6.82443148]
[1752669192760,5.974,167.37,167.23,186.3]
[1752669192973,6.82443148,167.38,167.29,6.82443148]
[1752669193268,5.9749,167.35,167.27,6.82443148]
[1752669193464,6.82443148,167.37,167.29,6.82443148]
[1752669193662,124.0,167.38,167.23,186.3]
[1752669193663,6.82443148,167.41,167.31,6.82443148]
[1752669193860,516.9,167.44,167.34,5.9748]
[1752669194063,6.82443148,167.42,167.33,6.82443148]
[1752669194262,130.82443148,167.42,167.37,0.03814457]
[1752669194865,124.0,167.42,167.37,0.03814457]
[1752669195063,6.82443148,167.45,167.37,0.03814457]
[1752669195571,124.0,167.44,167.36,6.82443148]
[1752669196071,5.9722,167.42,167.38,5.9734]
[1752669196271,6.82443148,167.45,167.36,6.82443148]
[1752669196469,124.0,167.45,167.38,0.03817265]
[1752669196772,6.82443148,167.4,167.32,516.66]
[1752669197065,6.82443148,167.4,167.33,5.9754]
[1752669197670,5.9739,167.38,167.33,5.9752]
[1752669197870,5.9739,167.38,167.32,523.48443148]
[1752669198071,0.04050016,167.37,167.32,523.48443148]
[1752669198769,0.04050016,167.37,167.32,516.66]
[1752669198968,0.04050016,167.37,167.32,523.48443148]
[1752669199771,0.04050016,167.37,167.36,5.9743]
[1752669199970,124.0,167.45,167.36,6.82443148]
[1752669200273,130.82443148,167.45,167.36,192.32443148]
[1752669200673,6.82443148,167.43,167.32,516.66]
[1752669200972,6.82443148,167.39,167.32,516.66]
[1752669201265,6.82443148,167.37,167.36,0.0384455]
[1752669201468,6.82443148,167.37,167.27,6.82443148]
[1752669201665,6.86251502,167.37,167.26,66.04]
[1752669201865,6.82443148,167.33,167.26,66.04]
[1752669202061,6.82443148,167.33,167.25,192.22443148]
[1752669202272,6.82443148,167.33,167.25,185.4]
[1752669202871,6.82443148,167.4,167.25,185.4]
[1752669203069,0.03780304,167.31,167.25,192.22443148]
[1752669203668,0.03780304,167.31,167.25,185.4]
[1752669205469,5.9765,167.3,167.26,5.9779]
[1752669205675,0.03780304,167.31,167.25,185.4]
[1752669206674,6.82443148,167.3,167.25,185.4]
[1752669206872,6.82443148,167.28,167.26,0.04308295]
[1752669207268,5.9776,167.27,167.26,0.04308295]
[1752669208263,12.80173148,167.28,167.26,0.04308295]
[1752669208668,0.03780304,167.31,167.26,0.04308295]
[1752669208872,6.82443148,167.3,167.26,0.04308295]
[1752669209073,6.82443148,167.28,167.26,0.04308295]
[1752669209674,6.82443148,167.3,167.26,0.04308295]
[1752669209874,5.977,167.29,167.26,0.04308295]
[1752669210079,6.82443148,167.3,167.26,0.04308295]
[1752669210480,12.80093148,167.3,167.26,6.02098295]
[1752669210682,6.82443148,167.3,167.26,0.04308295]
[1752669210880,5.9769,167.29,167.26,0.04308295]
[1752669211084,6.82443148,167.3,167.26,0.04308295]
[1752669211580,6.82443148,167.28,167.26,0.04308295]
[1752669212082,5.9776,167.27,167.26,0.04308295]
[1752669212279,6.82443148,167.28,167.26,0.04308295]
[1752669212480,6.82443148,167.3,167.26,0.04308295]
[1752669212682,5.9775,167.28,167.26,0.04308295]
[1752669212881,6.82443148,167.3,167.26,0.04308295]
[1752669214584,5.9776,167.27,167.26,0.04308295]
[1752669216083,0.03780304,167.31,167.26,0.04308295]
[1752669216992,5.9771,167.29,167.26,0.04308295]
[1752669218285,6.82443148,167.3,167.26,0.04308295]
[1752669218490,6.82443148,167.28,167.26,0.04308295]
[1752669218680,5.979,167.23,167.2,91.7120187]
[1752669218882,6.82443148,167.25,167.18,516.4]
[1752669219783,6.82443148,167.28,167.19,5.80985832]
[1752669219989,6.82443148,167.28,167.18,523.22443148]
[1752669220189,0.03786843,167.23,167.19,5.80945968]
[1752669220389,0.03786843,167.23,167.18,523.22443148]
[1752669220590,0.03786843,167.23,167.19,5.81543915]
[1752669220789,0.03786843,167.23,167.18,523.22443148]
[1752669220989,0.03786843,167.23,167.2,6.82443148]
[1752669221194,6.82443148,167.3,167.21,190.23408777]
[1752669221390,5.9778,167.27,167.21,190.3996]
[1752669222197,5.9778,167.27,167.22,5.8228835]
[1752669222390,0.04332764,167.26,167.22,5.9793]
[1752669222591,0.04332764,167.26,167.21,184.42]
[1752669222797,0.04332764,167.26,167.22,5.8224963]
[1752669222997,0.04332764,167.26,167.21,184.42]
[1752669223198,0.04332764,167.26,167.24,6.82443148]
[1752669223397,6.82443148,167.34,167.24,6.82443148]
[1752669223697,5.9767,167.3,167.24,6.82443148]
[1752669224397,5.9767,167.3,167.25,11.80795919]
[1752669224590,5.9767,167.3,167.25,5.9782]
[1752669224788,5.9762,167.31,167.26,5.9778]
[1752669225001,6.82443148,167.34,167.26,184.18355624]
[1752669225197,5.9761,167.32,167.26,191.00798772]
[1752669225388,20.32837783,167.41,167.28,6.82443148]
[1752669225588,6.82443148,167.37,167.28,6.82443148]
[1752669225798,5.9753,167.34,167.28,6.82443148]
[1752669225999,5.9753,167.34,167.26,184.14]
[1752669226198,6.82443148,167.37,167.31,0.03977834]
[1752669226390,5.9753,167.34,167.31,0.03977834]
[1752669227697,20.32837783,167.41,167.31,0.03977834]
[1752669227998,6.82443148,167.4,167.31,0.03977834]
[1752669228394,6.82443148,167.38,167.31,0.03977834]
[1752669229401,6.82443148,167.36,167.31,0.03977834]
[1752669229802,5.9758,167.32,167.31,0.03977834]
[1752669229994,6.82443148,167.36,167.31,0.03977834]
[1752669230396,5.9758,167.32,167.31,0.03977834]
[1752669232005,0.04453088,167.33,167.26,184.14]
[1752669232407,0.04453088,167.33,167.26,190.1179]
[1752669232606,5.9767,167.3,167.26,184.14]
[1752669233308,5.9769,167.29,167.26,184.14]
[1752669234003,6.01687036,167.29,167.26,184.14]
[1752669234706,5.9772,167.28,167.26,184.14]
[1752669234908,0.03997036,167.29,167.26,184.14]
[1752669235205,5.9774,167.28,167.26,184.14]
[1752669235806,0.03997036,167.29,167.26,184.14]
[1752669236610,0.03997036,167.29,167.28,5.9772]
[1752669236811,6.82443148,167.38,167.28,6.82443148]
[1752669237206,5.975,167.35,167.3,5.9762]
[1752669237606,6.82443148,167.38,167.3,5.9762]
[1752669238211,6.82443148,167.38,167.29,12.80123148]
[1752669238911,6.82443148,167.38,167.32,0.039833]
[1752669239604,20.32837783,167.41,167.32,0.039833]
[1752669239909,6.82443148,167.39,167.32,0.039833]
[1752669240316,37.15955933,167.41,167.32,0.039833]
[1752669240910,6.82443148,167.39,167.32,0.039833]
[1752669241112,6.82443148,167.37,167.32,0.039833]
[1752669241309,10.00675002,167.39,167.32,0.039833]
[1752669241511,138.38197726,167.45,167.32,0.039833]
[1752669241512,5.974,167.37,167.32,0.039833]
[1752669241711,16.8311815,167.42,167.33,6.82443148]
[1752669241912,5.9739,167.38,167.34,5.9748]
[1752669242111,10.00675002,167.42,167.31,6.82443148]
[1752669242112,6.82443148,167.41,167.31,6.82443148]
[1752669242610,5.974,167.37,167.34,0.03909175]
[1752669242911,6.82443148,167.41,167.34,0.03909175]
[1752669243511,16.8311815,167.41,167.34,0.03909175]
[1752669244212,5.9745,167.36,167.34,0.03909175]
[1752669244408,16.8311815,167.41,167.34,0.03909175]
[1752669244609,6.82443148,167.41,167.34,0.03909175]
[1752669245113,16.8311815,167.41,167.34,0.03909175]
[1752669245814,5.9742,167.37,167.34,0.03909175]
[1752669246410,5.9744,167.36,167.34,0.03909175]
[1752669246810,10.00675002,167.4,167.34,0.03909175]
[1752669247105,5.9734,167.39,167.34,6.01379175]
[1752669247306,10.00675002,167.42,167.35,4.08488682]
[1752669247511,4.08488682,167.43,167.35,4.08488682]
[1752669248009,5.9728,167.41,167.37,5.974]
[1752669248205,5.9728,167.41,167.37,6.01434713]
[1752669248406,5.9736,167.39,167.37,0.04034713]
[1752669248613,4.08488682,167.43,167.37,0.04034713]
[1752669248614,4.08488682,167.41,167.37,0.04034713]
[1752669249018,6.80605651,167.44,167.37,0.04034713]
[1752669249412,6.80605651,167.42,167.37,0.04034713]
[1752669249607,5.9736,167.38,167.37,0.04034713]
[1752669250012,6.80605651,167.42,167.37,0.04034713]
[1752669250616,5.9736,167.38,167.37,0.04034713]
[1752669251010,6.80605651,167.4,167.3,184.84]
[1752669251209,124.0,167.45,167.3,184.84]
[1752669251210,6.80605651,167.38,167.3,184.84]
[1752669251415,6.80605651,167.38,167.31,5.9759]
[1752669251919,5.9749,167.35,167.31,5.9759]
[1752669252419,6.80605651,167.4,167.31,6.80605651]
[1752669252819,5.9746,167.36,167.32,5.9757]
[1752669253316,5.9742,167.37,167.31,6.80605651]
[1752669253516,6.80605651,167.4,167.31,6.80605651]
[1752669254117,6.80605651,167.4,167.3,184.84]
[1752669254322,5.9743,167.37,167.33,5.9752]
[1752669254519,5.9743,167.37,167.31,6.80605651]
[1752669254722,10.00675002,167.43,167.33,6.80605651]
[1752669255020,5.9732,167.4,167.36,5.9743]
[1752669255224,140.81280653,167.45,167.35,6.80605651]
[1752669255424,5.9728,167.41,167.37,5.9737]
[1752669255721,5.9728,167.41,167.35,6.80605651]
[1752669256220,130.80605651,167.45,167.35,6.80605651]
[1752669256724,124.0,167.45,167.37,6.80605651]
[1752669257223,124.0,167.45,167.39,5.973]
[1752669257823,124.0,167.45,167.3,191.64605651]
[1752669258019,124.0,167.45,167.36,6.80605651]
[1752669258525,5.9725,167.42,167.38,5.9734]
[1752669258725,124.0,167.45,167.36,6.80605651]
[1752669259024,5.9725,167.42,167.38,5.9733]
[1752669259728,5.9726,167.41,167.37,5.9739]
[1752669259925,5.9726,167.41,167.36,6.80605651]
[1752669260230,124.0,167.45,167.39,5.9731]
[1752669260528,124.0,167.45,167.38,6.80605651]
[1752669260726,5.9727,167.41,167.36,6.80605651]
[1752669260930,130.80605651,167.45,167.36,6.80605651]
[1752669261233,5.9729,167.4,167.36,5.9741]
[1752669261426,124.0,167.45,167.33,190.74605651]
[1752669261627,6.80605651,167.44,167.35,6.80605651]
[1752669262028,5.9727,167.41,167.37,5.9738]
[1752669262228,124.0,167.45,167.37,6.80605651]
[1752669262629,5.9724,167.42,167.38,5.9735]
[1752669263332,5.9726,167.41,167.38,5.9735]
[1752669263529,130.80605651,167.45,167.38,5.9735]
[1752669263731,130.80605651,167.45,167.35,6.80605651]
[1752669264733,140.81280653,167.45,167.35,6.80605651]
[1752669264923,5.9727,167.41,167.37,5.9739]
[1752669265125,6.80605651,167.43,167.37,5.9739]
[1752669265326,134.00675002,167.45,167.35,6.80605651]
[1752669265529,5.9725,167.42,167.38,5.9733]
[1752669266429,5.9726,167.41,167.38,5.9733]
[1752669266629,5.9726,167.41,167.37,5.9738]
[1752669267133,6.80605651,167.42,167.35,5.9744]
[1752669267523,10.00675002,167.44,167.33,183.94]
[1752669267524,16.81280653,167.44,167.34,6.80605651]
[1752669267725,6.80605651,167.44,167.34,6.80605651]
[1752669268134,5.972,167.43,167.36,6.80605651]
[1752669268327,10.00675002,167.47,167.36,6.80605651]
[1752669268528,10.00675002,167.46,167.38,6.80605651]
[1752669268724,10.00675002,167.47,167.4,6.80605651]
[1752669268925,10.00675002,167.49,167.4,6.80605651]
[1752669269128,14.08730994,167.49,167.41,4.08055992]
[1752669269638,5.9705,167.47,167.41,4.08055992]
[1752669269936,14.08730994,167.49,167.43,5.9717]
[1752669270132,5.9706,167.47,167.41,4.08055992]
[1752669270334,4.08055992,167.49,167.41,4.08055992]
[1752669270642,5.97,167.49,167.45,4.08055992]
[1752669270937,14.08730994,167.51,167.43,10.05205992]
[1752669271139,4.08055992,167.51,167.42,183.22]
[1752669271337,4.08055992,167.51,167.43,4.08055992]
[1752669271537,4.08055992,167.51,167.45,5.9709]
[1752669271739,5.9698,167.49,167.43,4.08055992]
[1752669271934,4.08055992,167.49,167.41,4.08055992]
[1752669272133,4.08055992,167.49,167.42,5.972]
[1752669272942,4.08055992,167.45,167.38,520.14055992]
[1752669273139,10.00675002,167.49,167.38,520.14055992]
[1752669273341,5.971,167.46,167.42,5.9721]
[1752669273534,14.08730994,167.48,167.4,4.08055992]
[1752669273734,4.08055992,167.48,167.4,4.08055992]
[1752669274439,5.9713,167.45,167.4,4.08055992]
[1752669274629,4.08055992,167.49,167.4,4.08055992]
[1752669274837,10.00675002,167.5,167.42,4.08055992]
[1752669275136,4.08055992,167.49,167.42,4.08055992]
[1752669275638,4.08055992,167.49,167.4,4.08055992]
[1752669276039,4.08055992,167.47,167.39,4.08055992]
[1752669276440,5.9714,167.45,167.41,5.9723]
[1752669276834,4.08055992,167.47,167.39,4.08055992]
[1752669277134,5.9714,167.45,167.41,5.9726]
[1752669277934,5.9715,167.44,167.41,5.9726]
[1752669280041,5.9712,167.45,167.42,5.9721]
[1752669280235,10.00675002,167.49,167.42,5.9721]
[1752669280538,5.971,167.46,167.43,4.08055992]
[1752669281430,5.9714,167.45,167.43,4.08055992]
[1752669281629,5.9714,167.45,167.43,182.78]
[1752669282245,5.9709,167.46,167.43,182.78]
[1752669282840,5.9705,167.47,167.43,186.86055992]
[1752669283037,10.00675002,167.5,167.43,186.86055992]
[1752669283344,10.00675002,167.52,167.45,4.08055992]
[1752669283737,5.97,167.49,167.46,5.9707]
[1752669284041,10.00675002,167.52,167.38,516.06]
[1752669284240,5.9698,167.49,167.47,4.08055992]
[1752669284436,10.00675002,167.52,167.46,4.08055992]
[1752669284638,10.00675002,167.51,167.46,4.08055992]
[1752669284840,5.9703,167.48,167.45,188.631]
[1752669285039,5.9703,167.48,167.45,192.71155992]
[1752669285234,5.9703,167.48,167.45,4.08055992]
[1752669285438,5.9699,167.49,167.46,5.9707]
[1752669285643,10.00675002,167.51,167.45,186.64055992]
[1752669285842,0.04026784,167.48,167.45,186.64055992]
[1752669286339,6.01056784,167.48,167.45,192.61165992]
[1752669286841,0.04026784,167.48,167.47,4.08055992]
[1752669287034,10.00675002,167.54,167.47,4.08055992]
[1752669287238,10.00675002,167.54,167.49,4.08055992]
[1752669287436,5.9689,167.52,167.49,4.08055992]
[1752669287641,10.00675002,167.54,167.49,4.08055992]
[1752669287947,5.9689,167.52,167.49,10.04995992]
[1752669288342,5.9689,167.52,167.5,0.04029967]
[1752669288646,5.9684,167.53,167.5,0.04029967]
[1752669288944,10.00675002,167.55,167.5,0.04029967]
[1752669289145,5.969,167.51,167.5,0.04029967]
[1752669289642,5.9704,167.47,167.46,182.42]
[1752669289836,4.08055992,167.47,167.4,10.05325992]
[1752669290036,4.08055992,167.47,167.41,182.4]
[1752669290243,14.08730994,167.47,167.41,182.4]
[1752669290439,4.08055992,167.45,167.38,526.11405992]
[1752669290639,4.08055992,167.43,167.38,516.06]
[1752669290846,4.08055992,167.42,167.38,516.06]
[1752669291041,4.08055992,167.4,167.34,4.08055992]
[1752669291248,5.9738,167.38,167.35,182.4]
[1752669291545,4.08055992,167.4,167.35,182.38]
[1752669292241,0.04327502,167.39,167.35,182.38]
[1752669293445,5.9737,167.38,167.35,182.38]
[1752669293749,0.04327502,167.39,167.35,182.38]
[1752669294146,0.04327502,167.39,167.37,5.9737]
[1752669294353,0.04327502,167.39,167.35,189.18916909]
[1752669294648,0.04327502,167.39,167.35,182.38]
[1752669294850,5.9739,167.38,167.35,182.38]
[1752669295148,0.04327502,167.39,167.35,182.38]
[1752669296043,0.04327502,167.39,167.36,5.9741]
[1752669296455,0.04327502,167.39,167.35,189.18916909]
[1752669296743,0.04327502,167.39,167.38,5.9736]
[1752669296947,10.00675002,167.44,167.37,6.80916909]
[1752669297149,10.00675002,167.46,167.39,6.80916909]
[1752669297349,10.00675002,167.46,167.4,181.98]
[1752669297550,5.9722,167.43,167.4,181.98]
[1752669298146,5.9722,167.43,167.4,182.02098008]
[1752669299145,5.9722,167.43,167.4,187.99378008]
[1752669299547,16.81591911,167.45,167.4,182.02098008]
[1752669299748,10.00675002,167.44,167.4,182.02098008]
[1752669299949,10.00675002,167.43,167.4,182.02098008]
[1752669300848,10.00675002,167.42,167.33,6.80916909]
[1752669301046,5.9742,167.37,167.31,6.80916909]
[1752669301249,10.00675002,167.4,167.32,181.96]
[1752669301444,10.00675002,167.4,167.34,6.80916909]
[1752669301645,199.8614,167.57,167.32,188.76916909]
[1752669301646,16.81591911,167.42,167.32,188.76916909]
[1752669301953,10.00675002,167.4,167.32,6.80916909]
[1752669302153,5.9735,167.39,167.32,6.80916909]
[1752669302350,5.9735,167.39,167.33,181.96]
[1752669302351,0.04447254,167.39,167.33,181.96]
[1752669302554,6.80916909,167.38,167.33,181.96]
[1752669302855,16.81591911,167.38,167.33,181.96]
[1752669303251,16.81591911,167.38,167.3,515.88]
[1752669303252,6.80916909,167.36,167.3,515.88]
[1752669304161,0.04591064,167.35,167.3,515.88]
[1752669304549,5.9753,167.34,167.31,5.9758]
[1752669305254,5.9754,167.33,167.3,515.88]
[1752669305558,0.04591064,167.35,167.3,515.88]
[1752669306556,5.9751,167.34,167.31,5.9759]
[1752669307149,6.02071064,167.35,167.32,5.9758]
[1752669307351,0.04591064,167.35,167.32,5.9758]
[1752669307556,0.04591064,167.35,167.33,181.98]
[1752669307749,6.02091064,167.35,167.33,181.98]
[1752669308249,0.04591064,167.35,167.33,181.98]
[1752669309457,0.04591064,167.35,167.34,5.9751]
[1752669309659,0.04591064,167.35,167.32,182.0]
[1752669309959,6.02091064,167.35,167.32,187.9755]
[1752669310353,5.9754,167.33,167.32,182.0]
[1752669310549,6.85507973,167.35,167.3,515.88]
[1752669310854,6.85507973,167.35,167.31,182.0]